{"text_format":"3","workbook":"xlsx","n_sheets":1,"sheets":["Személyes havi költségvetés"],"read":"whole","date_system":"1900"}

{"sheet":"Személyes havi költségvetés","index":0,"n_rows":64,"n_cols":10,"rows_kept":64,"merged":[[1,1,1,9],[2,1,2,9],[4,1,6,1],[4,2,4,3],[4,6,5,8],[4,9,5,9],[5,2,5,3],[6,2,6,3],[6,6,7,8],[6,9,7,9],[7,1,9,1],[7,2,7,3],[8,2,8,3],[8,6,9,8],[8,9,9,9],[9,2,9,3],[22,6,22,9],[23,1,23,4],[31,6,31,9],[33,1,33,4],[38,6,38,9],[40,1,40,4],[44,6,44,9],[46,1,46,4],[50,6,50,9],[54,1,54,4],[57,6,57,9],[58,6,59,8],[58,9,59,9],[60,6,61,8],[60,9,61,9],[62,6,63,8],[62,9,63,9]]}
[]
[null,"Személyes havi költségvetés"]
[]
[]
[null,"TERVEZETT HAVI BEVÉTEL","Bevétel 1",null,{"v":2500,"d":"2,500 Ft"},null,"TERVEZETT EGYENLEG (Tervezett bevétel mínusz kiadások)",null,null,{"$f":"E7-J59","v":{"v":940,"d":"940 Ft"}}]
[null,null,"Plusz bevétel",null,{"v":500,"d":"500 Ft"}]
[null,null,"Teljes havi bevétel",null,{"$f":"SUM(E5:E6)","v":{"v":3000,"d":"3,000 Ft"}},null,"TÉNYLEGES EGYENLEG (Tényleges bevétel mínusz kiadások)",null,null,{"$f":"E10-J61","v":{"v":960,"d":"960 Ft"}}]
[null,"TÉNYLEGES HAVI BEVÉTEL","Bevétel 1",null,{"v":2500,"d":"2,500 Ft"}]
[null,null,"Plusz bevétel",null,{"v":500,"d":"500 Ft"},null,"KÜLÖNBÖZET (Tényleges mínusz tervezett)",null,null,{"$f":"J7-J5","v":{"v":20,"d":"20 Ft"}}]
[null,null,"Teljes havi bevétel",null,{"$f":"SUM(E8:E9)","v":{"v":3000,"d":"3,000 Ft"}}]
[]
[null,"LAKÁS","Tervezett költség","Tényleges költség","Különbözet",null,"SZÓRAKOZÁS","Tervezett költség","Tényleges költség","Különbözet"]
[null,"Jelzálog vagy bérleti díj",{"v":1500,"d":"1,500 Ft"},{"v":1400,"d":"1,400 Ft"},{"$f":"Táblázat1[[#This Row],[Tervezett költség]]-Táblázat1[[#This Row],[Tényleges költség]]","v":{"v":100,"d":"100 Ft"}},null,"Videó/DVD",{"v":0,"d":"0 Ft"},{"v":50,"d":"50 Ft"},{"$f":"Táblázat2[[#This Row],[Tervezett költség]]-Táblázat2[[#This Row],[Tényleges költség]]","v":{"v":-50,"d":"-50 Ft"}}]
[null,"Telefon",{"v":60,"d":"60 Ft"},{"v":100,"d":"100 Ft"},{"$f":"Táblázat1[[#This Row],[Tervezett költség]]-Táblázat1[[#This Row],[Tényleges költség]]","v":{"v":-40,"d":"-40 Ft"}},null,"CD-k",null,null,{"$f":"Táblázat2[[#This Row],[Tervezett költség]]-Táblázat2[[#This Row],[Tényleges költség]]","v":{"v":0,"d":"0 Ft"}}]
[null,"Áram",{"v":50,"d":"50 Ft"},{"v":60,"d":"60 Ft"},{"$f":"Táblázat1[[#This Row],[Tervezett költség]]-Táblázat1[[#This Row],[Tényleges költség]]","v":{"v":-10,"d":"-10 Ft"}},null,"Filmek",null,null,{"$f":"Táblázat2[[#This Row],[Tervezett költség]]-Táblázat2[[#This Row],[Tényleges költség]]","v":{"v":0,"d":"0 Ft"}}]
[null,"Gáz",{"v":200,"d":"200 Ft"},{"v":180,"d":"180 Ft"},{"$f":"Táblázat1[[#This Row],[Tervezett költség]]-Táblázat1[[#This Row],[Tényleges költség]]","v":{"v":20,"d":"20 Ft"}},null,"Koncertek",null,null,{"$f":"Táblázat2[[#This Row],[Tervezett költség]]-Táblázat2[[#This Row],[Tényleges költség]]","v":{"v":0,"d":"0 Ft"}}]
[null,"Víz és csatornázás",null,null,{"$f":"Táblázat1[[#This Row],[Tervezett költség]]-Táblázat1[[#This Row],[Tényleges költség]]","v":{"v":0,"d":"0 Ft"}},null,"Sportesemények",null,null,{"$f":"Táblázat2[[#This Row],[Tervezett költség]]-Táblázat2[[#This Row],[Tényleges költség]]","v":{"v":0,"d":"0 Ft"}}]
[null,"Kábeltévé",null,null,{"$f":"Táblázat1[[#This Row],[Tervezett költség]]-Táblázat1[[#This Row],[Tényleges költség]]","v":{"v":0,"d":"0 Ft"}},null,"Színház",null,null,{"$f":"Táblázat2[[#This Row],[Tervezett költség]]-Táblázat2[[#This Row],[Tényleges költség]]","v":{"v":0,"d":"0 Ft"}}]
[null,"Szemétdíj",null,null,{"$f":"Táblázat1[[#This Row],[Tervezett költség]]-Táblázat1[[#This Row],[Tényleges költség]]","v":{"v":0,"d":"0 Ft"}},null,"Egyéb",null,null,{"$f":"Táblázat2[[#This Row],[Tervezett költség]]-Táblázat2[[#This Row],[Tényleges költség]]","v":{"v":0,"d":"0 Ft"}}]
[null,"Karbantartás és javítások",null,null,{"$f":"Táblázat1[[#This Row],[Tervezett költség]]-Táblázat1[[#This Row],[Tényleges költség]]","v":{"v":0,"d":"0 Ft"}},null,"Egyéb",null,null,{"$f":"Táblázat2[[#This Row],[Tervezett költség]]-Táblázat2[[#This Row],[Tényleges költség]]","v":{"v":0,"d":"0 Ft"}}]
[null,"Kellékek",null,null,{"$f":"Táblázat1[[#This Row],[Tervezett költség]]-Táblázat1[[#This Row],[Tényleges költség]]","v":{"v":0,"d":"0 Ft"}},null,"Egyéb",null,null,{"$f":"Táblázat2[[#This Row],[Tervezett költség]]-Táblázat2[[#This Row],[Tényleges költség]]","v":{"v":0,"d":"0 Ft"}}]
[null,"Egyéb",null,null,{"$f":"Táblázat1[[#This Row],[Tervezett költség]]-Táblázat1[[#This Row],[Tényleges költség]]","v":{"v":0,"d":"0 Ft"}},null,"Összeg",{"$f":"SUBTOTAL(109,Táblázat2[Tervezett költség])","v":{"v":0,"d":"0 Ft"}},{"$f":"SUBTOTAL(109,Táblázat2[Tényleges költség])","v":{"v":50,"d":"50 Ft"}},{"$f":"SUBTOTAL(109,Táblázat2[Különbözet])","v":{"v":-50,"d":"-50 Ft"}}]
[null,"Összeg",{"$f":"SUBTOTAL(109,Táblázat1[Tervezett költség])","v":{"v":1810,"d":"1,810 Ft"}},{"$f":"SUBTOTAL(109,Táblázat1[Tényleges költség])","v":{"v":1740,"d":"1,740 Ft"}},{"$f":"SUBTOTAL(109,Táblázat1[Különbözet])","v":{"v":70,"d":"70 Ft"}}]
[{"$nulls":6},"HITELEK","Tervezett költség","Tényleges költség","Különbözet"]
[null,"KÖZLEKEDÉS","Tervezett költség","Tényleges költség","Különbözet",null,"Személyes",null,null,{"$f":"Táblázat8[[#This Row],[Tervezett költség]]-Táblázat8[[#This Row],[Tényleges költség]]","v":{"v":0,"d":"0 Ft"}}]
[null,"Autó törlesztése",{"v":250,"d":"250 Ft"},{"v":250,"d":"250 Ft"},{"$f":"Táblázat3[[#This Row],[Tervezett költség]]-Táblázat3[[#This Row],[Tényleges költség]]","v":{"v":0,"d":"0 Ft"}},null,"Diák",null,null,{"$f":"Táblázat8[[#This Row],[Tervezett költség]]-Táblázat8[[#This Row],[Tényleges költség]]","v":{"v":0,"d":"0 Ft"}}]
[null,"Busz/taxi",null,null,{"$f":"Táblázat3[[#This Row],[Tervezett költség]]-Táblázat3[[#This Row],[Tényleges költség]]","v":{"v":0,"d":"0 Ft"}},null,"Hitelkártya",null,null,{"$f":"Táblázat8[[#This Row],[Tervezett költség]]-Táblázat8[[#This Row],[Tényleges költség]]","v":{"v":0,"d":"0 Ft"}}]
[null,"Biztosítás",null,null,{"$f":"Táblázat3[[#This Row],[Tervezett költség]]-Táblázat3[[#This Row],[Tényleges költség]]","v":{"v":0,"d":"0 Ft"}},null,"Hitelkártya",null,null,{"$f":"Táblázat8[[#This Row],[Tervezett költség]]-Táblázat8[[#This Row],[Tényleges költség]]","v":{"v":0,"d":"0 Ft"}}]
[null,"Engedélyek",null,null,{"$f":"Táblázat3[[#This Row],[Tervezett költség]]-Táblázat3[[#This Row],[Tényleges költség]]","v":{"v":0,"d":"0 Ft"}},null,"Hitelkártya",null,null,{"$f":"Táblázat8[[#This Row],[Tervezett költség]]-Táblázat8[[#This Row],[Tényleges költség]]","v":{"v":0,"d":"0 Ft"}}]
[null,"Üzemanyag",null,null,{"$f":"Táblázat3[[#This Row],[Tervezett költség]]-Táblázat3[[#This Row],[Tényleges költség]]","v":{"v":0,"d":"0 Ft"}},null,"Egyéb",null,null,{"$f":"Táblázat8[[#This Row],[Tervezett költség]]-Táblázat8[[#This Row],[Tényleges költség]]","v":{"v":0,"d":"0 Ft"}}]
[null,"Karbantartás",null,null,{"$f":"Táblázat3[[#This Row],[Tervezett költség]]-Táblázat3[[#This Row],[Tényleges költség]]","v":{"v":0,"d":"0 Ft"}},null,"Összeg",{"$f":"SUBTOTAL(109,Táblázat8[Tervezett költség])","v":{"v":0,"d":"0 Ft"}},{"$f":"SUBTOTAL(109,Táblázat8[Tényleges költség])","v":{"v":0,"d":"0 Ft"}},{"$f":"SUBTOTAL(109,Táblázat8[Különbözet])","v":{"v":0,"d":"0 Ft"}}]
[null,"Egyéb",null,null,{"$f":"Táblázat3[[#This Row],[Tervezett költség]]-Táblázat3[[#This Row],[Tényleges költség]]","v":{"v":0,"d":"0 Ft"}}]
[null,"Összeg",{"$f":"SUBTOTAL(109,Táblázat3[Tervezett költség])","v":{"v":250,"d":"250 Ft"}},{"$f":"SUBTOTAL(109,Táblázat3[Tényleges költség])","v":{"v":250,"d":"250 Ft"}},{"$f":"SUBTOTAL(109,Táblázat3[Különbözet])","v":{"v":0,"d":"0 Ft"}},null,"ADÓK","Tervezett költség","Tényleges költség","Különbözet"]
[{"$nulls":6},"Szövetségi",null,null,{"$f":"Táblázat9[[#This Row],[Tervezett költség]]-Táblázat9[[#This Row],[Tényleges költség]]","v":{"v":0,"d":"0 Ft"}}]
[null,"BIZTOSÍTÁS","Tervezett költség","Tényleges költség","Különbözet",null,"Állami",null,null,{"$f":"Táblázat9[[#This Row],[Tervezett költség]]-Táblázat9[[#This Row],[Tényleges költség]]","v":{"v":0,"d":"0 Ft"}}]
[null,"Lakás",null,null,{"$f":"Táblázat4[[#This Row],[Tervezett költség]]-Táblázat4[[#This Row],[Tényleges költség]]","v":{"v":0,"d":"0 Ft"}},null,"Helyi",null,null,{"$f":"Táblázat9[[#This Row],[Tervezett költség]]-Táblázat9[[#This Row],[Tényleges költség]]","v":{"v":0,"d":"0 Ft"}}]
[null,"Egészség",null,null,{"$f":"Táblázat4[[#This Row],[Tervezett költség]]-Táblázat4[[#This Row],[Tényleges költség]]","v":{"v":0,"d":"0 Ft"}},null,"Egyéb",null,null,{"$f":"Táblázat9[[#This Row],[Tervezett költség]]-Táblázat9[[#This Row],[Tényleges költség]]","v":{"v":0,"d":"0 Ft"}}]
[null,"Élet",null,null,{"$f":"Táblázat4[[#This Row],[Tervezett költség]]-Táblázat4[[#This Row],[Tényleges költség]]","v":{"v":0,"d":"0 Ft"}},null,"Összeg",{"$f":"SUBTOTAL(109,Táblázat9[Tervezett költség])","v":{"v":0,"d":"0 Ft"}},{"$f":"SUBTOTAL(109,Táblázat9[Tényleges költség])","v":{"v":0,"d":"0 Ft"}},{"$f":"SUBTOTAL(109,Táblázat9[Különbözet])","v":{"v":0,"d":"0 Ft"}}]
[null,"Egyéb",null,null,{"$f":"Táblázat4[[#This Row],[Tervezett költség]]-Táblázat4[[#This Row],[Tényleges költség]]","v":{"v":0,"d":"0 Ft"}}]
[null,"Összeg",{"$f":"SUBTOTAL(109,Táblázat4[Tervezett költség])","v":{"v":0,"d":"0 Ft"}},{"$f":"SUBTOTAL(109,Táblázat4[Tényleges költség])","v":{"v":0,"d":"0 Ft"}},{"$f":"SUBTOTAL(109,Táblázat4[Különbözet])","v":{"v":0,"d":"0 Ft"}},null,"MEGTAKARÍTÁSOK VAGY BEFEKTETÉSEK","Tervezett költség","Tényleges költség","Különbözet"]
[{"$nulls":6},"Nyugdíjszámla",null,null,{"$f":"Táblázat10[[#This Row],[Tervezett költség]]-Táblázat10[[#This Row],[Tényleges költség]]","v":{"v":0,"d":"0 Ft"}}]
[null,"ÉLELMISZER","Tervezett költség","Tényleges költség","Különbözet",null,"Befektetési számla",null,null,{"$f":"Táblázat10[[#This Row],[Tervezett költség]]-Táblázat10[[#This Row],[Tényleges költség]]","v":{"v":0,"d":"0 Ft"}}]
[null,"Bevásárlás",null,null,{"$f":"Táblázat5[[#This Row],[Tervezett költség]]-Táblázat5[[#This Row],[Tényleges költség]]","v":{"v":0,"d":"0 Ft"}},null,"Egyéb",null,null,{"$f":"Táblázat10[[#This Row],[Tervezett költség]]-Táblázat10[[#This Row],[Tényleges költség]]","v":{"v":0,"d":"0 Ft"}}]
[null,"Házon kívüli étkezések",null,null,{"$f":"Táblázat5[[#This Row],[Tervezett költség]]-Táblázat5[[#This Row],[Tényleges költség]]","v":{"v":0,"d":"0 Ft"}},null,"Összeg",{"$f":"SUBTOTAL(109,Táblázat10[Tervezett költség])","v":{"v":0,"d":"0 Ft"}},{"$f":"SUBTOTAL(109,Táblázat10[Tényleges költség])","v":{"v":0,"d":"0 Ft"}},{"$f":"SUBTOTAL(109,Táblázat10[Különbözet])","v":{"v":0,"d":"0 Ft"}}]
[null,"Egyéb",null,null,{"$f":"Táblázat5[[#This Row],[Tervezett költség]]-Táblázat5[[#This Row],[Tényleges költség]]","v":{"v":0,"d":"0 Ft"}}]
[null,"Összeg",{"$f":"SUBTOTAL(109,Táblázat5[Tervezett költség])","v":{"v":0,"d":"0 Ft"}},{"$f":"SUBTOTAL(109,Táblázat5[Tényleges költség])","v":{"v":0,"d":"0 Ft"}},{"$f":"SUBTOTAL(109,Táblázat5[Különbözet])","v":{"v":0,"d":"0 Ft"}},null,"AJÁNDÉKOK ÉS ADOMÁNYOK","Tervezett költség","Tényleges költség","Különbözet"]
[{"$nulls":6},"Jótékonyság 1",null,null,{"$f":"Táblázat11[[#This Row],[Tervezett költség]]-Táblázat11[[#This Row],[Tényleges költség]]","v":{"v":0,"d":"0 Ft"}}]
[null,"KISÁLLATOK","Tervezett költség","Tényleges költség","Különbözet",null,"Jótékonyság 2",null,null,{"$f":"Táblázat11[[#This Row],[Tervezett költség]]-Táblázat11[[#This Row],[Tényleges költség]]","v":{"v":0,"d":"0 Ft"}}]
[null,"Élelmezés",null,null,{"$f":"Táblázat6[[#This Row],[Tervezett költség]]-Táblázat6[[#This Row],[Tényleges költség]]","v":{"v":0,"d":"0 Ft"}},null,"Jótékonyság 3",null,null,{"$f":"Táblázat11[[#This Row],[Tervezett költség]]-Táblázat11[[#This Row],[Tényleges költség]]","v":{"v":0,"d":"0 Ft"}}]
[null,"Egészségügy",null,null,{"$f":"Táblázat6[[#This Row],[Tervezett költség]]-Táblázat6[[#This Row],[Tényleges költség]]","v":{"v":0,"d":"0 Ft"}},null,"Összeg",{"$f":"SUBTOTAL(109,Táblázat11[Tervezett költség])","v":{"v":0,"d":"0 Ft"}},{"$f":"SUBTOTAL(109,Táblázat11[Tényleges költség])","v":{"v":0,"d":"0 Ft"}},{"$f":"SUBTOTAL(109,Táblázat11[Különbözet])","v":{"v":0,"d":"0 Ft"}}]
[null,"Ápolás",null,null,{"$f":"Táblázat6[[#This Row],[Tervezett költség]]-Táblázat6[[#This Row],[Tényleges költség]]","v":{"v":0,"d":"0 Ft"}}]
[null,"Játékok",null,null,{"$f":"Táblázat6[[#This Row],[Tervezett költség]]-Táblázat6[[#This Row],[Tényleges költség]]","v":{"v":0,"d":"0 Ft"}},null,"JOGI KIADÁSOK","Tervezett költség","Tényleges költség","Különbözet"]
[null,"Egyéb",null,null,{"$f":"Táblázat6[[#This Row],[Tervezett költség]]-Táblázat6[[#This Row],[Tényleges költség]]","v":{"v":0,"d":"0 Ft"}},null,"Ügyvéd",null,null,{"$f":"Táblázat12[[#This Row],[Tervezett költség]]-Táblázat12[[#This Row],[Tényleges költség]]","v":{"v":0,"d":"0 Ft"}}]
[null,"Összeg",{"$f":"SUBTOTAL(109,Táblázat6[Tervezett költség])","v":{"v":0,"d":"0 Ft"}},{"$f":"SUBTOTAL(109,Táblázat6[Tényleges költség])","v":{"v":0,"d":"0 Ft"}},{"$f":"SUBTOTAL(109,Táblázat6[Különbözet])","v":{"v":0,"d":"0 Ft"}},null,"Tartásdíj",null,null,{"$f":"Táblázat12[[#This Row],[Tervezett költség]]-Táblázat12[[#This Row],[Tényleges költség]]","v":{"v":0,"d":"0 Ft"}}]
[{"$nulls":6},"Kártérítés behajtása",null,null,{"$f":"Táblázat12[[#This Row],[Tervezett költség]]-Táblázat12[[#This Row],[Tényleges költség]]","v":{"v":0,"d":"0 Ft"}}]
[null,"SZEMÉLYES KIADÁSOK","Tervezett költség","Tényleges költség","Különbözet",null,"Egyéb",null,null,{"$f":"Táblázat12[[#This Row],[Tervezett költség]]-Táblázat12[[#This Row],[Tényleges költség]]","v":{"v":0,"d":"0 Ft"}}]
[null,"Egészségügy",null,null,{"$f":"Táblázat7[[#This Row],[Tervezett költség]]-Táblázat7[[#This Row],[Tényleges költség]]","v":{"v":0,"d":"0 Ft"}},null,"Összeg",{"$f":"SUBTOTAL(109,Táblázat12[Tervezett költség])","v":{"v":0,"d":"0 Ft"}},{"$f":"SUBTOTAL(109,Táblázat12[Tényleges költség])","v":{"v":0,"d":"0 Ft"}},{"$f":"SUBTOTAL(109,Táblázat12[Különbözet])","v":{"v":0,"d":"0 Ft"}}]
[null,"Haj- és körömápolás",null,null,{"$f":"Táblázat7[[#This Row],[Tervezett költség]]-Táblázat7[[#This Row],[Tényleges költség]]","v":{"v":0,"d":"0 Ft"}}]
[null,"Ruhanemű",null,null,{"$f":"Táblázat7[[#This Row],[Tervezett költség]]-Táblázat7[[#This Row],[Tényleges költség]]","v":{"v":0,"d":"0 Ft"}},null,"TELJES TERVEZETT KÖLTSÉG",null,null,{"$f":"SUM(C23,C33,C40,C46,C54,C64,H22,H31,H38,H44,H50,H57)","v":{"v":2060,"d":"2,060 Ft"}}]
[null,"Tisztító",null,null,{"$f":"Táblázat7[[#This Row],[Tervezett költség]]-Táblázat7[[#This Row],[Tényleges költség]]","v":{"v":0,"d":"0 Ft"}}]
[null,"Egészségklub",null,null,{"$f":"Táblázat7[[#This Row],[Tervezett költség]]-Táblázat7[[#This Row],[Tényleges költség]]","v":{"v":0,"d":"0 Ft"}},null,"TELJES TÉNYLEGES KÖLTSÉG",null,null,{"$f":"SUM(D23,D33,D40,D46,D54,D64,I22,I31,I38,I44,I50,I57)","v":{"v":2040,"d":"2,040 Ft"}}]
[null,"Szervezeti tagdíjak",null,null,{"$f":"Táblázat7[[#This Row],[Tervezett költség]]-Táblázat7[[#This Row],[Tényleges költség]]","v":{"v":0,"d":"0 Ft"}}]
[null,"Egyéb",null,null,{"$f":"Táblázat7[[#This Row],[Tervezett költség]]-Táblázat7[[#This Row],[Tényleges költség]]","v":{"v":0,"d":"0 Ft"}},null,"TELJES KÜLÖNBÖZET",null,null,{"$f":"SUM(E23,E33,E40,E46,E54,E64,J22,J31,J38,J44,J50,J57)","v":{"v":20,"d":"20 Ft"}}]
[null,"Összeg",{"$f":"SUBTOTAL(109,Táblázat7[Tervezett költség])","v":{"v":0,"d":"0 Ft"}},{"$f":"SUBTOTAL(109,Táblázat7[Tényleges költség])","v":{"v":0,"d":"0 Ft"}},{"$f":"SUBTOTAL(109,Táblázat7[Különbözet])","v":{"v":0,"d":"0 Ft"}}]